Workbook

Sheet Data for Table 1
C2: The control group | G2: The OLA group
B3: Weight(g) | C3: Baseline | D3: 8-week treatment | G3: Baseline | H3: 8-week treatment
C4: 21.63 | D4: 21.79 | G4: 21.25 | H4: 21.52
C5: 21.55 | D5: 21.61 | G5: 22.67 | H5: 22.73
C6: 21.54 | D6: 21.74 | G6: 22.74 | H6: 22.81
C7: 20.72 | D7: 20.83 | G7: 22.52 | H7: 22.59
C8: 21.63 | D8: 21.83 | G8: 21.04 | H8: 21.37
C9: 21.44 | D9: 21.62 | G9: 20.32 | H9: 20.4
C10: 21.21 | D10: 21.35 | G10: 22.63 | H10: 22.71
C11: 20.62 | D11: 20.95 | G11: 20.52 | H11: 20.83
C12: 21.37 | D12: 21.44 | G12: 21.05 | H12: 21.17
C13: 20.95 | D13: 21.15 | G13: 22.53 | H13: 22.65
B14: mean | C14: 21.266 | D14: 21.431 | G14: 21.727 | H14: 21.878
B15: SD | C15: 0.3771589703 | D15: 0.3542582235 | G15: 0.9774575865 | H15: 0.9165127143
B16: p | C16: 0.3266395999 | G16: 0.7257107961
B18: G0(mmol/L) | C18: 3.4 | D18: 3.3 | G18: 3.7 | H18: 8.897727273
C19: 3.1 | D19: 3.9 | G19: 3.9 | H19: 9.021634615
C20: 3.6 | D20: 3 | G20: 3.4 | H20: 8.396837349
C21: 3.5 | D21: 3.7 | G21: 2.6 | H21: 8.341981132
C22: 2.9 | D22: 3.5 | G22: 3.8 | H22: 8.120769231
C23: =AVERAGE(C18:C22) -> 3.3 | D23: 3.7 | G23: 3.5 | H23: 8.031456954
C24: 3.3 | D24: 3.5 | G24: 3.3 | H24: 7.864006515
C25: 3.8 | D25: 3.6 | G25: 3.8 | H25: 7.571428571
C26: 3.2 | D26: 3.4 | G26: 3.2 | H26: 8.856543624
C27: 3.1 | D27: 3.5 | G27: 3.7 | H27: 8.598726115
B28: mean | C28: 3.32 | D28: 3.51 | G28: 3.49 | H28: 8.370111138
B29: SD | C29: 0.2658320272 | D29: 0.2469817807 | G29: 0.3900142448 | H29: 0.4789041149
B30: p | C30: 0.1150855042 | G30: 2.002107655e-15
B32: I0(µU/ml) | C32: 23.31 | D32: 23.71 | G32: 22.73 | H32: 30.81
C33: 23.4 | D33: 22.41 | G33: 23.83 | H33: 31.19
C34: 22.52 | D34: 23.41 | G34: 23.42 | H34: 33.23
C35: 23.79 | D35: 23.91 | G35: 22.55 | H35: 31.77
C36: 23.71 | D36: 24.33 | G36: 23.75 | H36: 32.55
C37: 22.69 | D37: 22.65 | G37: 24.23 | H37: 30.23
C38: 23.51 | D38: 23.11 | G38: 24.57 | H38: 30.72
C39: 23.45 | D39: 23.52 | G39: 22.63 | H39: 31.4
C40: 23.73 | D40: 23.24 | G40: 22.37 | H40: 29.82
C41: 23.42 | D41: 22.19 | G41: 23.19 | H41: 31.38
B42: mean | C42: 23.353 | D42: 23.248 | G42: 23.327 | H42: 31.31
B43: SD | C43: 0.4264335301 | D43: 0.6766715928 | G43: 0.7587716682 | H43: 1.024564948
B44: p | C44: 0.6829483143 | G44: 1.145103475e-13
B46: HOMA-IR | C46: 3.5224 | D46: 3.477466667 | G46: 3.737822222 | H46: 12.18395455
C47: 3.224 | D47: 3.8844 | G47: 4.130533333 | H47: 12.50599038
C48: 3.6032 | D48: 3.121333333 | G48: 3.539022222 | H48: 12.40119578
C49: 3.700666667 | D49: 3.931866667 | G49: 2.605777778 | H49: 11.77887736
C50: 3.055955556 | D50: 3.784666667 | G50: 4.011111111 | H50: 11.74804615
C51: 3.327866667 | D51: 3.724666667 | G51: 3.769111111 | H51: 10.79070861
C52: 3.448133333 | D52: 3.594888889 | G52: 3.6036 | H52: 10.73699023
C53: 3.960444444 | D53: 3.7632 | G53: 3.821955556 | H53: 10.56634921
C54: 3.374933333 | D54: 3.511822222 | G54: 3.181511111 | H54: 11.73787248
C55: 3.226755556 | D55: 3.451777778 | G55: 3.813466667 | H55: 11.99235669
B56: mean | C56: 3.444435556 | D56: 3.624608889 | G56: 3.621391111 | H56: 11.64423414
B57: SD | C57: 0.2642662429 | D57: 0.2438460654 | G57: 0.4416723286 | H57: 0.7054714205
B58: p | C58: 0.1304886735 | G58: 6.051124154e-17

Sheet Data for Figure 1
B2: OGTT test | E2: 0min | F2: 30min | G2: 60min | H2: 90min | I2: 120min | J2: AUC
B3: The control group | E3: 3.7 | F3: 10.8 | G3: 9.3 | H3: 8.3 | I3: 4.5 | J3: =(E3+F3)/4+(F3+G3)/4+(G3+H3)/4+(H3+I3)/4 -> 16.25
E4: 3.4 | F4: 11.5 | G4: 9.7 | H4: 8.5 | I4: 4.9 | J4: =(E4+F4)/4+(F4+G4)/4+(G4+H4)/4+(H4+I4)/4 -> 16.925
E5: 4.2 | F5: 11.3 | G5: 9.7 | H5: 8.2 | I5: 4.7 | J5: =(E5+F5)/4+(F5+G5)/4+(G5+H5)/4+(H5+I5)/4 -> 16.825
E6: 3.5 | F6: 10.6 | G6: 9.5 | H6: 8.8 | I6: 4.4 | J6: =(E6+F6)/4+(F6+G6)/4+(G6+H6)/4+(H6+I6)/4 -> 16.425
E7: 3.5 | F7: 10.9 | G7: 9.4 | H7: 8.5 | I7: 4.6 | J7: =(E7+F7)/4+(F7+G7)/4+(G7+H7)/4+(H7+I7)/4 -> 16.425
E8: 4.3 | F8: 10.8 | G8: 9.6 | H8: 8.4 | I8: 4.3 | J8: =(E8+F8)/4+(F8+G8)/4+(G8+H8)/4+(H8+I8)/4 -> 16.55
E9: 3.3 | F9: 11.3 | G9: 9.5 | H9: 8.6 | I9: 4.5 | J9: =(E9+F9)/4+(F9+G9)/4+(G9+H9)/4+(H9+I9)/4 -> 16.65
E10: 3.5 | F10: 10.7 | G10: 9.8 | H10: 8.5 | I10: 4.4 | J10: =(E10+F10)/4+(F10+G10)/4+(G10+H10)/4+(H10+I10)/4 -> 16.475
E11: 3.7 | F11: 11.3 | G11: 9.3 | H11: 8.4 | I11: 4.6 | J11: =(E11+F11)/4+(F11+G11)/4+(G11+H11)/4+(H11+I11)/4 -> 16.575
E12: 3.6 | F12: 10.8 | G12: 9.6 | H12: 8.7 | I12: 4.3 | J12: =(E12+F12)/4+(F12+G12)/4+(G12+H12)/4+(H12+I12)/4 -> 16.525
D13: mean | E13: =AVERAGE(E3:E12) -> 3.67 | F13: =AVERAGE(F3:F12) -> 11 | G13: =AVERAGE(G3:G12) -> 9.54 | H13: =AVERAGE(H3:H12) -> 8.49 | I13: =AVERAGE(I3:I12) -> 4.52 | J13: =AVERAGE(J3:J12) -> 16.5625
D14: sd | E14: =STDEV(E3:E12) -> 0.3301514804 | F14: =STDEV(F3:F12) -> 0.316227766 | G14: =STDEV(G3:G12) -> 0.1712697677 | H14: =STDEV(H3:H12) -> 0.1791957341 | I14: =STDEV(I3:I12) -> 0.187379591 | J14: =STDEV(J3:J12) -> 0.1979934062
B17: The OLA group | E17: 8.9 | F17: 17.3 | G17: 13.6 | H17: 10.9 | I17: 8.9 | J17: =(E17+F17)/4+(F17+G17)/4+(G17+H17)/4+(H17+I17)/4 -> 25.35
E18: 9.1 | F18: 17.8 | G18: 13.9 | H18: 11.1 | I18: 8.5 | J18: =(E18+F18)/4+(F18+G18)/4+(G18+H18)/4+(H18+I18)/4 -> 25.8
E19: 9.6 | F19: 17.1 | G19: 14.2 | H19: 11.4 | I19: 9.1 | J19: =(E19+F19)/4+(F19+G19)/4+(G19+H19)/4+(H19+I19)/4 -> 26.025
E20: 9.5 | F20: 17.4 | G20: 13.8 | H20: 11.7 | I20: 8.4 | J20: =(E20+F20)/4+(F20+G20)/4+(G20+H20)/4+(H20+I20)/4 -> 25.925
E21: 9.3 | F21: 17.5 | G21: 13.7 | H21: 10.7 | I21: 8.3 | J21: =(E21+F21)/4+(F21+G21)/4+(G21+H21)/4+(H21+I21)/4 -> 25.35
E22: 9.5 | F22: 16.9 | G22: 13.6 | H22: 10.5 | I22: 8.6 | J22: =(E22+F22)/4+(F22+G22)/4+(G22+H22)/4+(H22+I22)/4 -> 25.025
E23: 9.2 | F23: 17.2 | G23: 14.1 | H23: 11.3 | I23: 8.5 | J23: =(E23+F23)/4+(F23+G23)/4+(G23+H23)/4+(H23+I23)/4 -> 25.725
E24: 9.7 | F24: 17.3 | G24: 13.9 | H24: 11.2 | I24: 8.7 | J24: =(E24+F24)/4+(F24+G24)/4+(G24+H24)/4+(H24+I24)/4 -> 25.8
E25: 9.5 | F25: 16.7 | G25: 13.5 | H25: 10.9 | I25: 8.8 | J25: =(E25+F25)/4+(F25+G25)/4+(G25+H25)/4+(H25+I25)/4 -> 25.125
E26: 9.4 | F26: 17.1 | G26: 13.7 | H26: 11.2 | I26: 8.3 | J26: =(E26+F26)/4+(F26+G26)/4+(G26+H26)/4+(H26+I26)/4 -> 25.425
D27: mean | E27: =AVERAGE(E17:E26) -> 9.37 | F27: =AVERAGE(F17:F26) -> 17.23 | G27: =AVERAGE(G17:G26) -> 13.8 | H27: =AVERAGE(H17:H26) -> 11.09 | I27: =AVERAGE(I17:I26) -> 8.61 | J27: =AVERAGE(J17:J26) -> 25.555
D28: sd | E28: =STDEV(E17:E26) -> 0.245175674 | F28: =STDEV(F17:F26) -> 0.3093002856 | G28: =STDEV(G17:G26) -> 0.2260776661 | H28: =STDEV(H17:H26) -> 0.3510302298 | I28: =STDEV(I17:I26) -> 0.2643650675 | J28: =STDEV(J17:J26) -> 0.3453661503

Sheet Data for Table 2
C2: The control group(%) | P2: The OLA group(%)
A3: Fatty acids | C3: 1 | D3: 2 | E3: 3 | F3: 4 | G3: 5 | H3: 6 | I3: 7 | J3: 8 | K3: 9 | L3: 10 | M3: mean | N3: sd | P3: 1 | Q3: 2 | R3: 3 | S3: 4 | T3: 5 | U3: 6 | V3: 7 | W3: 8 | X3: 9 | Y3: 10 | Z3: mean | AA3: SD | AC3: P
A4: C14:0 | C4: 2.008374811 | D4: 1.683704569 | E4: 1.947469246 | F4: 2.655477243 | G4: 2.210634362 | H4: 2.041425281 | I4: 2.074787437 | J4: 2.410755331 | K4: 1.97866563 | L4: 2.197795363 | M4: 2.120908927 | N4: 0.2679774654 | P4: 1.895069801 | Q4: 1.879170931 | R4: 2.063508019 | S4: 1.877008026 | T4: 2.372059073 | U4: 1.911149064 | V4: 2.075358121 | W4: 1.979547175 | X4: 1.85340192 | Y4: 2.188442446 | Z4: 2.009471458 | AA4: 0.1677611991 | AC4: 0.2796744691
A5: C15:0 | C5: 0.1850914362 | D5: 0.2169775388 | E5: 0.235236879 | F5: 0.2095934607 | G5: 0.1658128203 | H5: 0.2636372707 | I5: 0.2421135277 | J5: 0.2669332078 | K5: 0.2463563215 | L5: 0.2257003323 | M5: 0.2257452795 | N5: 0.03248497889 | P5: 0.2454706148 | Q5: 0.1777960845 | R5: 0.2416945698 | S5: 0.2223218945 | T5: 0.2046403745 | U5: 0.32406088 | V5: 0.2965797169 | W5: 0.2537964542 | X5: 0.2759716273 | Y5: 0.2535273368 | Z5: 0.2495859553 | AA5: 0.04279255426 | AC5: 0.1775581712
A6: C16:0 | C6: 18.52309907 | D6: 18.34624785 | E6: 19.35723403 | F6: 18.31107549 | G6: 17.80930809 | H6: 18.74534806 | I6: 19.40197614 | J6: 20.34377029 | K6: 18.17147773 | L6: 18.3887271 | M6: 18.73982639 | N6: 0.7520459769 | P6: 21.13507894 | Q6: 20.42557923 | R6: 22.43503394 | S6: 20.96122097 | T6: 19.93914106 | U6: 19.28887439 | V6: 19.01630426 | W6: 20.38722602 | X6: 19.45665637 | Y6: 19.88351594 | Z6: 20.29286311 | AA6: 1.022033132 | AC6: 0.001121060968
A7: C17:0 | C7: 0.5295313498 | D7: 0.5343186548 | E7: 0.5401927121 | F7: 0.4346000484 | G7: 0.4087003508 | H7: 0.5957659458 | I7: 0.5816098976 | J7: 0.5373701391 | K7: 0.5359004041 | L7: 0.4656305283 | M7: 0.5163620031 | N7: 0.06082659471 | P7: 0.6126149102 | Q7: 0.659062506 | R7: 0.6626806495 | S7: 0.6329136233 | T7: 0.5517640866 | U7: 0.8923601514 | V7: 0.7575187676 | W7: 0.7233995984 | X7: 0.7889686733 | Y7: 0.6993369747 | Z7: 0.6980619941 | AA7: 0.09770472391 | AC7: 9.437736852e-05
A8: C18:0 | C8: 9.262668476 | D8: 9.133034261 | E8: 9.18350986 | F8: 7.862010875 | G8: 8.466841729 | H8: 8.261674239 | I8: 7.503276859 | J8: 7.185976533 | K8: 7.485047452 | L8: 6.901141798 | M8: 8.124518208 | N8: 0.8699447766 | P8: 8.35354641 | Q8: 8.767586813 | R8: 8.883736058 | S8: 8.960908192 | T8: 8.537390798 | U8: 6.327394977 | V8: 7.101170743 | W8: 7.476350564 | X8: 6.455907718 | Y8: 7.702545227 | Z8: 7.85665375 | AA8: 0.9918689764 | AC8: 0.5289375919
A9: C20:0 | C9: 0.3428428184 | D9: 0.2758405599 | E9: 0.2460694659 | F9: 0.2516514257 | G9: 0.2899849062 | H9: 0.4761595427 | I9: 0.469513153 | J9: 0.413418013 | K9: 0.4505351029 | L9: 0.3322647812 | M9: 0.3548279769 | N9: 0.09069906094 | P9: 0.2609152335 | Q9: 0.30276634 | R9: 0.2589332849 | S9: 0.303268723 | T9: 0.299597786 | U9: 0.3868943353 | V9: 0.3978056561 | W9: 0.3401289623 | X9: 0.3535361654 | Y9: 0.3194846088 | Z9: 0.3223331095 | AA9: 0.04739619264 | AC9: 0.3286298273
A10: C22:0 | C10: 0.06763855662 | D10: 0.05305627508 | E10: 0.05825374799 | F10: 0.03142334598 | G10: 0.03675951079 | H10: 0.08936477621 | I10: 0.08737407785 | J10: 0.0673842375 | K10: 0.08297557645 | L10: 0.04693129717 | M10: 0.06211614016 | N10: 0.02051125044 | P10: 0.05292650157 | Q10: 0.05971518853 | R10: 0.06330834213 | S10: 0.06559126849 | T10: 0.05809776516 | U10: 0.06952617897 | V10: 0.08125073972 | W10: 0.07281626825 | X10: 0.06713674515 | Y10: 0.06365199235 | Z10: 0.06540209903 | AA10: 0.007992938565 | AC10: 0.6425760954
A11: C24:0 | C11: 0.08257530831 | D11: 0.07483254038 | E11: 0.08890780766 | F11: 0.02373341283 | G11: 0.03352336463 | H11: 0.1055290083 | I11: 0.08185064731 | J11: 0.0712251267 | K11: 0.08342596104 | L11: 0.03734651754 | M11: 0.06829496947 | N11: 0.02714533578 | P11: 0.08443111707 | Q11: 0.07018563623 | R11: 0.1021797611 | S11: 0.09353472472 | T11: 0.1047822827 | U11: 0.06668585268 | V11: 0.1008976721 | W11: 0.09028331569 | X11: 0.07132561589 | Y11: 0.08122503475 | Z11: 0.08655310129 | AA11: 0.01403285324 | AC11: 0.07505191166
A12: Total SFA | C12: =SUM(C4:C11) -> 31.00182183 | D12: =SUM(D4:D11) -> 30.31801225 | E12: =SUM(E4:E11) -> 31.65687375 | F12: =SUM(F4:F11) -> 29.7795653 | G12: =SUM(G4:G11) -> 29.42156513 | H12: =SUM(H4:H11) -> 30.57890412 | I12: =SUM(I4:I11) -> 30.44250174 | J12: =SUM(J4:J11) -> 31.29683288 | K12: =SUM(K4:K11) -> 29.03438418 | L12: =SUM(L4:L11) -> 28.59553772 | M12: 30.21259989 | N12: 0.9943642362 | P12: =SUM(P4:P11) -> 32.64005353 | Q12: =SUM(Q4:Q11) -> 32.34186273 | R12: =SUM(R4:R11) -> 34.71107463 | S12: =SUM(S4:S11) -> 33.11676742 | T12: =SUM(T4:T11) -> 32.06747322 | U12: =SUM(U4:U11) -> 29.26694583 | V12: =SUM(V4:V11) -> 29.82688567 | W12: =SUM(W4:W11) -> 31.32354836 | X12: =SUM(X4:X11) -> 29.32290484 | Y12: =SUM(Y4:Y11) -> 31.19172956 | Z12: 31.58092458 | AA12: 1.758840581 | AC12: 0.04615654943
A15: C14:1 | C15: 0.113980639 | D15: 0.08470075158 | E15: 0.09804565347 | F15: 0.1564616732 | G15: 0.125094416 | H15: 0.1407751314 | I15: 0.1548425764 | J15: 0.1689569021 | K15: 0.1675573333 | L15: 0.1620584753 | M15: 0.1372473552 | N15: 0.03021765826 | P15: 0.07758854227 | Q15: 0.07299855211 | R15: 0.08093900899 | S15: 0.07035669494 | T15: 0.1136812264 | U15: 0.06675235254 | V15: 0.09660216303 | W15: 0.09315023624 | X15: 0.07806161894 | Y15: 0.1162583157 | Z15: 0.08663887112 | AA15: 0.01759063154 | AC15: 0.0002337195932
A16: C15:1 | C16: 0.0216436343 | D16: 0.02709488437 | E16: 0.02634776729 | F16: 0.02097959921 | G16: 0.02625979421 | H16: 0.03260564925 | I16: 0.03704469795 | J16: 0.03284083936 | K16: 0.03693976291 | L16: 0.03410672922 | M16: 0.02958633581 | N16: 0.005913882133 | P16: 0.01810085275 | Q16: 0.01984809048 | R16: 0.01541277646 | S16: 0.01400548976 | T16: 0.01089723696 | U16: 0.01563011843 | V16: 0.03279228079 | W16: 0.01905853807 | X16: 0.03073746439 | Y16: 0.01595716677 | Z16: 0.01924400149 | AA16: 0.007094707513 | AC16: 0.002334352757
A17: C16:1 | C17: 5.825898846 | D17: 5.224139798 | E17: 6.007575829 | F17: 7.080949016 | G17: 6.280088231 | H17: 6.580620852 | I17: 7.914884217 | J17: 8.302014155 | K17: 7.138308747 | L17: 8.165132374 | M17: 6.851961207 | N17: 1.0492095 | P17: 4.746852089 | Q17: 4.359900871 | R17: 4.660195234 | S17: 4.761980608 | T17: 5.423394447 | U17: 4.64228655 | V17: 4.308994852 | W17: 4.457043013 | X17: 4.889372697 | Y17: 4.925724013 | Z17: 4.717574437 | AA17: 0.32413248 | AC17: 8.36295005e-06
A18: C17:1 | C18: 0.4224844619 | D18: 0.4135718564 | E18: 0.4059246814 | F18: 0.4061317891 | G18: 0.3767147613 | H18: 0.4375642577 | I18: 0.5112701253 | J18: 0.5012839539 | K18: 0.4672067108 | L18: 0.4753730379 | M18: 0.4417525636 | N18: 0.04487052245 | P18: 0.38458855 | Q18: 0.358295688 | R18: 0.396981763 | S18: 0.3762272819 | T18: 0.3649651506 | U18: 0.4457209315 | V18: 0.3673202796 | W18: 0.3998826307 | X18: 0.4385531707 | Y18: 0.4095034596 | Z18: 0.3942038906 | AA18: 0.03014326961 | AC18: 0.01231151487
A19: C18:1 | C19: 33.14377367 | D19: 32.52363887 | E19: 32.96090556 | F19: 26.59821788 | G19: 31.46299193 | H19: 27.77269686 | I19: 28.36850658 | J19: 25.52429018 | K19: 29.45478593 | L19: 28.07862903 | M19: 29.58884365 | N19: 2.762538135 | P19: 29.06421691 | Q19: 28.49532807 | R19: 27.67437769 | S19: 28.80101801 | T19: 29.26810344 | U19: 26.63014739 | V19: 25.93346915 | W19: 26.72509027 | X19: 26.95507925 | Y19: 27.24701253 | Z19: 27.67938427 | AA19: 1.161273219 | AC19: 0.05909352601
A20: C20:1 | C20: 2.554927874 | D20: 2.25999573 | E20: 1.559143428 | F20: 2.070146386 | G20: 2.186644513 | H20: 2.788887184 | I20: 3.079390375 | J20: 2.709185645 | K20: 3.434459349 | L20: 2.647670127 | M20: 2.529045061 | N20: 0.5352349673 | P20: 1.920083414 | Q20: 2.105095468 | R20: 1.558531662 | S20: 1.832399071 | T20: 2.053110958 | U20: 3.664639223 | V20: 3.111631718 | W20: 2.928067765 | X20: 3.187975279 | Y20: 2.263091259 | Z20: 2.462462582 | AA20: 0.7034108436 | AC20: 0.8144083673
A21: C22:1 | C21: 0.2222230642 | D21: 0.2036141124 | E21: 0.1896830708 | F21: 0.1993318098 | G21: 0.1900255437 | H21: 0.3205482082 | I21: 0.3274046302 | J21: 0.2827103384 | K21: 0.3322427042 | L21: 0.2309845385 | M21: 0.249876802 | N21: 0.05952528193 | P21: 0.1961072068 | Q21: 0.2245459038 | R21: 0.204281138 | S21: 0.2348037845 | T21: 0.2419657539 | U21: 0.3377387284 | V21: 0.3778103867 | W21: 0.2857428436 | X21: 0.2795347324 | Y21: 0.2517834774 | Z21: 0.2634313956 | AA21: 0.05804272396 | AC21: 0.6124372074
A22: C24:1 | C22: 0.05875350412 | D22: 0.04987261842 | E22: 0.05002078631 | F22: 0.0297503591 | G22: 0.03323827155 | H22: 0.07369882895 | I22: 0.06748994159 | J22: 0.0526689735 | K22: 0.06883363097 | L22: 0.03930649037 | M22: 0.05236334049 | N22: 0.01511255174 | P22: 0.04839595691 | Q22: 0.05787559551 | R22: 0.06357081978 | S22: 0.07656539465 | T22: 0.1075582688 | U22: 0.08226905537 | V22: 0.1085000653 | W22: 0.07049296397 | X22: 0.06585736037 | Y22: 0.06520618927 | Z22: 0.07462916699 | AA22: 0.01991000909 | AC22: 0.01141581371
A23: Total MUFA | C23: =SUM(C15:C22) -> 42.36368569 | D23: =SUM(D15:D22) -> 40.78662862 | E23: =SUM(E15:E22) -> 41.29764678 | F23: =SUM(F15:F22) -> 36.56196851 | G23: =SUM(G15:G22) -> 40.68105746 | H23: =SUM(H15:H22) -> 38.14739697 | I23: =SUM(I15:I22) -> 40.46083314 | J23: =SUM(J15:J22) -> 37.57395099 | K23: =SUM(K15:K22) -> 41.10033417 | L23: =SUM(L15:L22) -> 39.8332608 | M23: 39.88067631 | N23: 1.849923613 | P23: =SUM(P15:P22) -> 36.45593352 | Q23: =SUM(Q15:Q22) -> 35.69388824 | R23: =SUM(R15:R22) -> 34.65429009 | S23: =SUM(S15:S22) -> 36.16735633 | T23: =SUM(T15:T22) -> 37.58367648 | U23: =SUM(U15:U22) -> 35.88518435 | V23: =SUM(V15:V22) -> 34.3371209 | W23: =SUM(W15:W22) -> 34.97852826 | X23: =SUM(X15:X22) -> 35.92517157 | Y23: =SUM(Y15:Y22) -> 35.29453641 | Z23: 35.69756861 | AA23: 0.9462756879 | AC23: 5.371371339e-06
A26: C18:3n-3 | C26: 0.5110990501 | D26: 0.7293045954 | E26: 0.571235143 | F26: 1.138880342 | G26: 0.6600084365 | H26: 0.8275672907 | I26: 0.9420228373 | J26: 1.145283656 | K26: 0.8381096438 | L26: 0.9692393666 | M26: 0.8332750361 | N26: 0.2196982162 | P26: 0.6391216207 | Q26: 0.5542165214 | R26: 0.6337598254 | S26: 0.5967911353 | T26: 0.5544866251 | U26: 0.7420906216 | V26: 0.9458718853 | W26: 0.7477220477 | X26: 0.7326851471 | Y26: 0.8285022623 | Z26: 0.6975247692 | AA26: 0.1261369861 | AC26: 0.1073964281
A27: C20:5n-3 | C27: 0.2954103822 | D27: 0.5605076114 | E27: 0.3645115835 | F27: 0.7943247956 | G27: 0.484667178 | H27: 0.4484036622 | I27: 0.4251055231 | J27: 0.7661578149 | K27: 0.4216962469 | L27: 0.5321198356 | M27: 0.5092904633 | N27: 0.1619837976 | P27: 0.6406145439 | Q27: 0.5868313278 | R27: 0.5531887378 | S27: 0.5453288653 | T27: 0.5993008739 | U27: 0.3432650882 | V27: 0.4784154697 | W27: 0.5101823053 | X27: 0.5008888246 | Y27: 0.5671397102 | Z27: 0.5325155747 | AA27: 0.08241348963 | AC27: 0.6908934207
A28: C22:5n-3 | C28: 0.3575252324 | D28: 0.7732893883 | E28: 0.3575239806 | F28: 0.7501842868 | G28: 0.5906327734 | H28: 1.005784766 | I28: 0.7095938344 | J28: 0.8268557892 | K28: 0.7314346069 | L28: 0.7991630163 | M28: 0.6901987675 | N28: 0.2038461649 | P28: 0.6523754565 | Q28: 0.6723965923 | R28: 0.6249895462 | S28: 0.5831857362 | T28: 0.5413891538 | U28: 0.5982503082 | V28: 0.6929690178 | W28: 0.6893779206 | X28: 0.6825947784 | Y28: 0.6347656734 | Z28: 0.6372294183 | AA28: 0.05069719383 | AC28: 0.4355979792
A29: C22:6n-3 | C29: 1.346169803 | D29: 1.930956106 | E29: 1.452310954 | F29: 2.015625526 | G29: 1.425655275 | H29: 2.141671193 | I29: 1.494845071 | J29: 2.103857337 | K29: 1.724431196 | L29: 1.940564673 | M29: 1.757608713 | N29: 0.3055621846 | P29: 2.535546378 | Q29: 2.217793474 | R29: 2.240540473 | S29: 2.046784065 | T29: 1.862384757 | U29: 1.574720197 | V29: 1.700677132 | W29: 1.998038362 | X29: 2.069157051 | Y29: 2.060234889 | Z29: 2.030587678 | AA29: 0.275428184 | AC29: 0.05024592791
A30: Total PUFA n-3 | C30: =SUM(C26:C29) -> 2.510204468 | D30: =SUM(D26:D29) -> 3.994057701 | E30: =SUM(E26:E29) -> 2.745581661 | F30: =SUM(F26:F29) -> 4.699014951 | G30: =SUM(G26:G29) -> 3.160963663 | H30: =SUM(H26:H29) -> 4.423426912 | I30: =SUM(I26:I29) -> 3.571567266 | J30: =SUM(J26:J29) -> 4.842154597 | K30: =SUM(K26:K29) -> 3.715671693 | L30: =SUM(L26:L29) -> 4.241086891 | M30: 3.79037298 | N30: 0.7998121451 | P30: =SUM(P26:P29) -> 4.467657999 | Q30: =SUM(Q26:Q29) -> 4.031237915 | R30: =SUM(R26:R29) -> 4.052478583 | S30: =SUM(S26:S29) -> 3.772089802 | T30: =SUM(T26:T29) -> 3.55756141 | U30: =SUM(U26:U29) -> 3.258326215 | V30: =SUM(V26:V29) -> 3.817933505 | W30: =SUM(W26:W29) -> 3.945320636 | X30: =SUM(X26:X29) -> 3.985325801 | Y30: =SUM(Y26:Y29) -> 4.090642535 | Z30: 3.89785744 | AA30: 0.3266746935 | AC30: 0.698631066
A33: C18:2n-6 | C33: 17.61763248 | D33: 18.4386859 | E33: 17.61850712 | F33: 21.13571955 | G33: 19.31140536 | H33: 19.67550283 | I33: 19.76587647 | J33: 20.14953303 | K33: 20.1630503 | L33: 20.67657206 | M33: 19.45524851 | N33: 1.213267954 | P33: 19.92635235 | Q33: 20.64766751 | R33: 19.40828936 | S33: 19.68765379 | T33: 19.26 | U33: 26.0146828 | V33: 25.22412804 | W33: 23.06459019 | X33: 24.1460325 | Y33: 22.68628312 | Z33: 22.00656797 | AA33: 2.547817527 | AC33: 0.0104275432
A34: C18:3n-6 | C34: 0.4770189373 | D34: 0.4569372764 | E34: 0.4550952478 | F34: 0.4091333845 | G34: 0.4315960276 | H34: 0.4935854205 | I34: 0.4853581284 | J34: 0.4534771477 | K34: 0.5334888319 | L34: 0.4714487434 | M34: 0.4667139145 | N34: 0.03433779536 | P34: 0.65 | Q34: 0.5058962472 | R34: 0.4588682688 | S34: 0.4844843138 | T34: 0.66 | U34: 0.47 | V34: 0.5870510343 | W34: 0.5517257406 | X34: 0.6050390926 | Y34: 0.5613306386 | Z34: 0.5534395336 | AA34: 0.07261586687 | AC34: 0.003092344577
A35: C20:2n-6 | C35: 1.141692001 | D35: 1.044715977 | E35: 1.048561462 | F35: 0.8899778179 | G35: 1.032962583 | H35: 1.087853836 | I35: 0.9873495739 | J35: 0.8301896113 | K35: 1.033375905 | L35: 1.031598493 | M35: 1.012827726 | N35: 0.09116930402 | P35: 0.6605977263 | Q35: 0.7345416962 | R35: 0.6653247281 | S35: 0.6494675518 | T35: 0.97 | U35: 0.65 | V35: 0.907579448 | W35: 0.84051112 | X35: 0.8324344783 | Y35: 0.7691154807 | Z35: 0.7679572229 | AA35: 0.1158870005 | AC35: 5.403404419e-05
A36: C20:3n-6 | C36: 0.7542677669 | D36: 0.9634120411 | E36: 0.7069656039 | F36: 1.171274914 | G36: 1.051200207 | H36: 0.9575770891 | I36: 0.6183293987 | J36: 0.9258085033 | K36: 0.9416881665 | L36: 0.9363211035 | M36: 0.9026844794 | N36: 0.1650849678 | P36: 1.268003464 | Q36: 1.342610129 | R36: 1.311960878 | S36: 1.29522159 | T36: 1.316336488 | U36: 1.132023087 | V36: 1.162254609 | W36: 1.25760151 | X36: 1.236068018 | Y36: 1.254365036 | Z36: 1.257644481 | AA36: 0.06707358663 | AC36: 6.140792013e-06
A37: C20:4n-6 | C37: 3.68169134 | D37: 3.563260462 | E37: 3.89890165 | F37: 4.749823571 | G37: 4.464865313 | H37: 3.870258157 | I37: 3.326567563 | J37: 3.53601989 | K37: 3.495712829 | L37: 3.569886825 | M37: 3.81569876 | N37: 0.4553232073 | P37: 3.33 | Q37: 3.967721929 | R37: 3.998548251 | S37: 4.128966386 | T37: 3.66 | U37: 2.87 | V37: 3.438281169 | W37: 3.444877956 | X37: 3.229337455 | Y37: 3.534134157 | Z37: 3.56018673 | AA37: 0.3886385723 | AC37: 0.1938288945
A38: C22:4n-6 | C38: 0.4964656839 | D38: 0.452277558 | E38: 0.5123805815 | F38: 0.4208421527 | G38: 0.476360849 | H38: 0.5352351595 | I38: 0.3558560715 | J38: 0.3744334564 | K38: 0.384089968 | L38: 0.4194088115 | M38: 0.4427350292 | N38: 0.06163623368 | P38: 0.3095300954 | Q38: 0.3717363314 | R38: 0.3751243869 | S38: 0.4573413502 | T38: 0.5971167572 | U38: 0.3117504247 | V38: 0.4473849733 | W38: 0.3538004647 | X38: 0.3609478493 | Y38: 0.344684285 | Z38: 0.3929416918 | AA38: 0.08692263678 | AC38: 0.1567728193
A39: Total PUFA n-6 | C39: =SUM(C33:C38) -> 24.16876821 | D39: =SUM(D33:D38) -> 24.91928922 | E39: =SUM(E33:E38) -> 24.24041167 | F39: =SUM(F33:F38) -> 28.77677138 | G39: =SUM(G33:G38) -> 26.76839034 | H39: =SUM(H33:H38) -> 26.62001249 | I39: =SUM(I33:I38) -> 25.53933721 | J39: =SUM(J33:J38) -> 26.26946164 | K39: =SUM(K33:K38) -> 26.551406 | L39: =SUM(L33:L38) -> 27.10523603 | M39: 26.09590842 | N39: 1.415047156 | P39: =SUM(P33:P38) -> 26.14448364 | Q39: =SUM(Q33:Q38) -> 27.57017384 | R39: =SUM(R33:R38) -> 26.21811587 | S39: =SUM(S33:S38) -> 26.70313498 | T39: =SUM(T33:T38) -> 26.46345325 | U39: =SUM(U33:U38) -> 31.44845631 | V39: =SUM(V33:V38) -> 31.76667928 | W39: =SUM(W33:W38) -> 29.51310698 | X39: =SUM(X33:X38) -> 30.40985939 | Y39: =SUM(Y33:Y38) -> 29.14991272 | Z39: 28.53873763 | AA39: 2.197023064 | AC39: 0.008455746262
A41: D5D (C20:4n-6/C20:3n-6) | C41: =C37/C36 -> 4.881146327 | D41: =D37/D36 -> 3.698584105 | E41: =E37/E36 -> 5.514980684 | F41: =F37/F36 -> 4.055259372 | G41: =G37/G36 -> 4.247397672 | H41: =H37/H36 -> 4.04171967 | I41: =I37/I36 -> 5.379927868 | J41: =J37/J36 -> 3.819385842 | K41: =K37/K36 -> 3.712176657 | L41: =L37/L36 -> 3.812673677 | M41: 4.316325188 | N41: 0.6898128718 | P41: =P37/P36 -> 2.626175792 | Q41: =Q37/Q36 -> 2.955230147 | R41: =R37/R36 -> 3.047764853 | S41: =S37/S36 -> 3.187845554 | T41: =T37/T36 -> 2.780444083 | U41: =U37/U36 -> 2.535283982 | V41: =V37/V36 -> 2.958285681 | W41: =W37/W36 -> 2.73924445 | X41: =X37/X36 -> 2.612588796 | Y41: =Y37/Y36 -> 2.817468643 | Z41: 2.826033198 | AA41: 0.2092251011 | AC41: 3.818252552e-06
A42: D6D (C20:3n-6/C18:2n-6) | C42: =C36/C33 -> 0.04281323088 | D42: =D36/D33 -> 0.05224949576 | E42: =E36/E33 -> 0.04012630576 | F42: =F36/F33 -> 0.05541684593 | G42: =G36/G33 -> 0.05443416404 | H42: =H36/H33 -> 0.04866849388 | I42: =I36/I33 -> 0.03128267039 | J42: =J36/J33 -> 0.04594689623 | K42: =K36/K33 -> 0.04670365608 | L42: =L36/L33 -> 0.04528415546 | M42: 0.04629259144 | N42: 0.007206471068 | P42: =P36/P33 -> 0.06363449974 | Q42: =Q36/Q33 -> 0.06502478443 | R42: =R36/R33 -> 0.06759796567 | S42: =S36/S33 -> 0.06578851922 | T42: =T36/T33 -> 0.06834561205 | U42: =U36/U33 -> 0.04351477569 | V42: =V36/V33 -> 0.04607709759 | W42: =W36/W33 -> 0.05452520506 | X42: =X36/X33 -> 0.05119135072 | Y42: =Y36/Y33 -> 0.05529178268 | Z42: 0.05809915929 | AA42: 0.009180620862 | AC42: 0.004973915537
A43: SCD 1(C18:1/C18:0) | C43: =C19/C8 -> 3.578210076 | D43: =D19/D8 -> 3.561098967 | E43: =E19/E8 -> 3.589140325 | F43: =F19/F8 -> 3.383131657 | G43: =G19/G8 -> 3.716024574 | H43: =H19/H8 -> 3.361630592 | I43: =I19/I8 -> 3.780815651 | J43: =J19/J8 -> 3.551958466 | K43: =K19/K8 -> 3.935150194 | L43: =L19/L8 -> 4.068693247 | M43: 3.652585375 | N43: 0.2257748787 | P43: =P19/P8 -> 3.479266826 | Q43: =Q19/Q8 -> 3.250076523 | R43: =R19/R8 -> 3.115173336 | S43: =S19/S8 -> 3.21407355 | T43: =T19/T8 -> 3.428225805 | U43: =U19/U8 -> 4.208706345 | V43: =V19/V8 -> 3.651999099 | W43: =W19/W8 -> 3.57461706 | X43: =X19/X8 -> 4.17525783 | Y43: =Y19/Y8 -> 3.537403771 | Z43: 3.563480014 | AA43: 0.3720662742 | AC43: 0.525514043

Sheet Data for Table 3
D2: Fatty acids
D3: C14:0 | E3: C15:0 | F3: C16:0 | G3: C17:0 | H3: C18:0 | I3: C20:0 | J3: C22:0 | K3: C24:0 | M3: C14:1 | N3: C15:1 | O3: C16:1 | P3: C17:1 | Q3: C18:1 | R3: C20:1 | S3: C22:1 | T3: C24:1 | V3: C18:3n-3 | W3: C20:5n-3 | X3: C22:5n-3 | Y3: C22:6n-3 | AA3: C18:2n-6 | AB3: C18:3n-6 | AC3: C20:2n-6 | AD3: C20:3n-6 | AE3: C20:4n-6 | AF3: C22:4n-6 | AH3: D5D (C20:4n-6/C20:3n-6) | AI3: D6D (C20:3n-6/C18:2n-6) | AJ3: SCD1(C18:1/C18:0)
B4: Fasting glucose | C4: r | D4: -0.494 | E4: -0.375 | F4: 0.383 | G4: -0.28 | H4: 0.31 | I4: -0.503 | J4: -0.626 | K4: -0.536 | M4: -0.28 | N4: 0.083 | O4: 0.261 | P4: -0.083 | Q4: 0.486 | R4: -0.286 | S4: -0.662 | T4: -0.677 | V4: -0.451 | W4: 0.543 | X4: -0.037 | Y4: 0.802 | AA4: -0.274 | AB4: 0.122 | AC4: -0.287 | AD4: 0.401 | AE4: 0.128 | AF4: -0.18 | AH4: 0.037 | AI4: 0.418 | AJ4: -0.322
C5: p | D5: 0.147 | E5: 0.285 | F5: 0.275 | G5: 0.432 | H5: 0.383 | I5: 0.138 | J5: 0.053 | K5: 0.11 | M5: 0.433 | N5: 0.82 | O5: 0.466 | P5: 0.82 | Q5: 0.154 | R5: 0.424 | S5: 0.037 | T5: 0.031 | V5: 0.191 | W5: 0.105 | X5: 0.92 | Y5: 0.005 | AA5: 0.444 | AB5: 0.738 | AC5: 0.422 | AD5: 0.25 | AE5: 0.724 | AF5: 0.619 | AH5: 0.92 | AI5: 0.23 | AJ5: 0.364
B7: Fasting insulin | C7: r | D7: 0.45 | E7: -0.718 | F7: 0.648 | G7: -0.681 | H7: 0.794 | I7: -0.646 | J7: -0.369 | K7: 0.675 | M7: 0.205 | N7: -0.716 | O7: 0.261 | P7: -0.379 | Q7: 0.539 | R7: -0.794 | S7: -0.517 | T7: -0.025 | V7: -0.456 | W7: 0.468 | X7: -0.48 | Y7: 0.164 | AA7: -0.83 | AB7: -0.224 | AC7: 0.067 | AD7: 0.709 | AE7: 0.821 | AF7: 0.529 | AH7: 0.638 | AI7: 0.756 | AJ7: -0.818
C8: p | D8: 0.192 | E8: 0.019 | F8: 0.043 | G8: 0.03 | H8: 0.006 | I8: 0.044 | J8: 0.295 | K8: 0.032 | M8: 0.57 | N8: 0.02 | O8: 0.467 | P8: 0.28 | Q8: 0.108 | R8: 0.006 | S8: 0.126 | T8: 0.946 | V8: 0.185 | W8: 0.172 | X8: 0.16 | Y8: 0.651 | AA8: 0.003 | AB8: 0.533 | AC8: 0.854 | AD8: 0.022 | AE8: 0.004 | AF8: 0.116 | AH8: 0.047 | AI8: 0.011 | AJ8: 0.004
B10: HOMA-IR | C10: r | D10: -0.164 | E10: -0.644 | F10: 0.685 | G10: -0.571 | H10: 0.697 | I10: -0.8 | J10: -0.789 | K10: -0.144 | M10: -0.267 | N10: -0.275 | O10: 0.176 | P10: -0.294 | Q10: 0.648 | R10: -0.685 | S10: -0.888 | T10: -0.657 | V10: -0.608 | W10: 0.693 | X10: -0.328 | Y10: 0.782 | AA10: -0.612 | AB10: -0.176 | AC10: -0.401 | AD10: 0.685 | AE10: 0.535 | AF10: 0.024 | AH10: 0.419 | AI10: 0.75 | AJ10: -0.733
C11: p | D11: 0.65 | E11: 0.044 | F11: 0.029 | G11: 0.084 | H11: 0.025 | I11: 0.005 | J11: 0.007 | K11: 0.692 | M11: 0.456 | N11: 0.441 | O11: 0.627 | P11: 0.41 | Q11: 0.043 | R11: 0.029 | S11: 0.001 | T11: 0.039 | V11: 0.062 | W11: 0.026 | X11: 0.354 | Y11: 0.008 | AA11: 0.06 | AB11: 0.627 | AC11: 0.25 | AD11: 0.029 | AE11: 0.111 | AF11: 0.947 | AH11: 0.228 | AI11: 0.012 | AJ11: 0.016
